bitfinex/quotes_BTCUSD_20240823
["timestamp","ask_amount","ask_price","bid_price","bid_amount"]
[1724446587065,0.93521452,63722.0,63721.0,0.006825]
[1724446587276,0.93521462,63722.0,63721.0,0.006825]
[1724446587485,0.88829475,63722.0,63721.0,0.006825]
[1724446587730,1.27254417,63722.0,63721.0,0.006825]
[1724446587944,1.30984121,63722.0,63721.0,0.006825]
[1724446588172,1.62365248,63722.0,63721.0,0.006825]
[1724446588388,1.21585227,63722.0,63721.0,0.006825]
[1724446588599,1.30968217,63722.0,63721.0,0.006825]
[1724446589272,0.88829475,63722.0,63721.0,0.006825]
[1724446589501,1.30932792,63722.0,63721.0,0.006825]
[1724446589720,1.7871697,63722.0,63721.0,0.006825]
[1724446589937,1.72845065,63722.0,63721.0,0.006825]
[1724446590625,1.56447187,63722.0,63721.0,0.002825]
[1724446590829,1.56547187,63722.0,63721.0,0.000825]
[1724446591047,1.56747187,63722.0,63721.0,0.001825]
[1724446591254,1.56647187,63722.0,63721.0,0.001825]
[1724446591647,1.56747187,63722.0,63721.0,0.001825]
[1724446592064,1.56647187,63722.0,63721.0,0.001825]
[1724446592280,1.56447187,63722.0,63721.0,0.000825]
[1724446592488,1.56647187,63722.0,63721.0,0.001825]
[1724446592697,1.68365466,63722.0,63721.0,0.001825]
[1724446592908,1.68265466,63722.0,63721.0,0.000825]
[1724446593122,1.64811563,63722.0,63721.0,0.001825]
[1724446593329,1.22815775,63722.0,63721.0,0.001825]
[1724446593542,1.6676131,63722.0,63721.0,0.000825]
[1724446593755,1.66961337,63722.0,63721.0,0.000825]
[1724446593967,1.69083813,63722.0,63721.0,0.000825]
[1724446594188,1.66840159,63722.0,63721.0,0.000825]
[1724446594401,1.65629712,63722.0,63721.0,0.000825]
[1724446594621,1.31158466,63722.0,63721.0,0.000825]
[1724446594842,1.69161479,63722.0,63721.0,0.000825]
[1724446595070,1.56361567,63722.0,63721.0,0.000825]
[1724446595298,1.55979986,63722.0,63721.0,0.000825]
[1724446595504,1.57224575,63722.0,63721.0,0.000825]
[1724446595733,1.66603573,63722.0,63721.0,0.000825]
[1724446595955,1.29649776,63722.0,63721.0,0.000825]
[1724446596190,1.57288594,63722.0,63721.0,0.000825]
[1724446596426,1.56093149,63722.0,63721.0,0.000825]
[1724446596867,1.22615775,63722.0,63721.0,0.000825]
[1724446596869,1.29749594,63722.0,63721.0,0.000825]
[1724446597105,1.22515775,63722.0,63721.0,0.000825]
[1724446597343,1.27304957,63722.0,63721.0,0.000825]
[1724446597587,0.29051356,63722.0,63721.0,0.222759]
[1724446597823,0.28951356,63722.0,63721.0,0.304559]
[1724446598059,0.28951356,63722.0,63721.0,0.147625]
[1724446598316,0.29051356,63722.0,63721.0,0.304559]
[1724446598562,0.29051356,63722.0,63721.0,0.536627]
[1724446598785,0.28951356,63722.0,63721.0,0.222759]
[1724446598999,0.29151356,63722.0,63721.0,0.536627]
[1724446599226,0.29151356,63722.0,63721.0,0.222759]
[1724446599671,0.29251356,63722.0,63721.0,0.222759]
[1724446599909,0.28951356,63722.0,63721.0,0.536627]
[1724446600140,0.29151356,63722.0,63721.0,0.537627]
[1724446600353,0.29151356,63722.0,63721.0,0.851495]
[1724446600605,0.29151356,63722.0,63721.0,0.536627]
[1724446601045,0.29151356,63722.0,63721.0,0.538627]
[1724446601500,0.28951356,63722.0,63721.0,0.538627]
[1724446601917,0.29051356,63722.0,63721.0,0.538627]
[1724446602147,0.28951356,63722.0,63721.0,0.538627]
[1724446604396,0.28951356,63722.0,63721.0,0.159759]
[1724446604603,0.28951356,63722.0,63721.0,0.473627]
[1724446605029,0.28951356,63722.0,63721.0,0.159759]
[1724446605235,0.28951356,63722.0,63721.0,0.002825]
[1724446605450,0.49433831,63722.0,63721.0,0.002825]
[1724446606116,0.49435676,63722.0,63721.0,0.002825]
[1724446606545,0.49335674,63722.0,63721.0,0.002825]
[1724446606906,0.44644456,63722.0,63721.0,0.002825]
[1724446607325,0.99237116,63722.0,63721.0,0.002825]
[1724446607531,0.54165378,63722.0,63721.0,0.002825]
[1724446607756,0.94962193,63722.0,63721.0,0.002825]
[1724446607955,0.91405744,63722.0,63721.0,0.002825]
[1724446608186,0.84369475,63722.0,63721.0,0.002825]
[1724446608334,0.85580406,63722.0,63721.0,0.002825]
[1724446608542,0.91405831,63722.0,63721.0,0.002825]
[1724446608742,1.22792131,63722.0,63721.0,0.002825]
[1724446608930,1.20446941,63722.0,63721.0,0.002825]
[1724446609129,1.22792131,63722.0,63721.0,0.002825]
[1724446609338,1.15755775,63722.0,63721.0,0.002825]
[1724446609583,1.16966705,63722.0,63721.0,0.002825]
[1724446609773,1.16966803,63722.0,63721.0,0.002825]
[1724446609977,0.84369475,63722.0,63721.0,0.002825]
[1724446610180,0.89061034,63722.0,63721.0,0.002825]
[1724446610376,0.84369475,63722.0,63721.0,0.002825]
[1724446610633,1.15755775,63722.0,63721.0,0.002825]
[1724446610942,1.20449029,63722.0,63721.0,0.002825]
[1724446611141,0.80752659,63722.0,63721.0,0.002825]
[1724446611764,0.76059475,63722.0,63721.0,0.002825]
[1724446611972,0.17244212,63722.0,63721.0,0.536027]
[1724446612241,0.02551058,63722.0,63721.0,1.243463]
[1724446612896,0.02551058,63722.0,63721.0,1.24417581]
[1724446613101,0.02551058,63722.0,63721.0,1.55804381]
[1724446613334,0.02551058,63722.0,63721.0,1.55604381]
[1724446613761,0.02551058,63722.0,63721.0,1.55804381]
[1724446613973,0.00090751,63722.0,63721.0,1.55904381]
[1724446614359,0.00090751,63722.0,63721.0,1.57304381]
[1724446615239,0.5,63725.0,63724.0,2.146068]
[1724446615452,0.2835,63725.0,63724.0,2.31207098]
[1724446615659,0.2169,63725.0,63724.0,2.62592398]
[1724446615888,0.2169,63725.0,63724.0,2.72592398]
[1724446616714,0.2169,63725.0,63724.0,2.73992398]
[1724446617302,0.2169,63725.0,63724.0,2.83375056]
[1724446617525,0.2169,63725.0,63724.0,2.75392398]
[1724446617655,0.2169,63725.0,63724.0,2.73992398]
[1724446618076,0.2169,63725.0,63724.0,2.75392398]
[1724446618282,0.2169,63725.0,63724.0,2.82424667]
[1724446618502,0.2169,63725.0,63724.0,2.75392398]
[1724446618711,0.2169,63725.0,63724.0,2.73992398]
[1724446618916,0.2169,63725.0,63724.0,2.72592398]
[1724446619115,0.2169,63725.0,63724.0,2.81020873]
[1724446619583,0.2169,63725.0,63724.0,2.78675479]
[1724446619821,0.2169,63725.0,63724.0,2.80075479]
[1724446620257,0.2169,63725.0,63724.0,2.75392398]
[1724446620635,0.2169,63725.0,63724.0,2.80074871]
[1724446621493,0.2169,63725.0,63724.0,2.75392398]
[1724446621700,0.21780751,63725.0,63724.0,2.73992398]
[1724446622554,0.21780751,63725.0,63724.0,2.75392398]
[1724446622709,0.21780751,63725.0,63724.0,2.73992398]
[1724446623111,0.21780751,63725.0,63724.0,2.75392398]
[1724446623482,0.21780751,63725.0,63724.0,2.73992398]
[1724446623858,0.21780751,63725.0,63724.0,2.75392398]
[1724446624486,0.21780751,63725.0,63724.0,2.73992398]
[1724446624705,0.21780751,63725.0,63724.0,2.75392398]
[1724446624916,0.21780751,63725.0,63724.0,2.73992398]
[1724446625157,0.21780751,63725.0,63724.0,2.72592398]
[1724446625357,0.21780751,63725.0,63724.0,2.73992398]
[1724446625580,0.21780751,63725.0,63724.0,2.75392398]
[1724446626066,0.21780751,63725.0,63724.0,2.72592398]
[1724446626481,0.21780751,63725.0,63724.0,2.73992398]
[1724446626894,0.21780751,63725.0,63724.0,2.75392398]
[1724446628259,0.21780751,63725.0,63724.0,2.72592398]
[1724446628478,0.21780751,63725.0,63724.0,2.41007098]
[1724446628710,0.21780751,63725.0,63724.0,1.58705081]
[1724446628927,0.21780751,63725.0,63724.0,1.57305081]
[1724446629132,0.21780751,63725.0,63724.0,2.02421798]
[1724446629344,0.21780751,63725.0,63724.0,2.02321798]
[1724446629558,0.21780751,63725.0,63724.0,1.99621798]
[1724446629759,0.21780751,63725.0,63724.0,2.01021798]
[1724446629969,0.21780751,63725.0,63724.0,2.02421798]
[1724446631018,0.21780751,63725.0,63724.0,2.02321798]
[1724446631446,0.21780751,63725.0,63724.0,2.33807098]
[1724446631650,0.21780751,63725.0,63724.0,2.43807098]
[1724446632715,0.21780751,63725.0,63724.0,2.4462403]
[1724446633534,0.21780751,63725.0,63724.0,2.4482403]
[1724446634157,0.21780751,63725.0,63724.0,2.1352123]
[1724446638198,0.21780751,63725.0,63724.0,2.4490653]
[1724446641425,0.21780751,63725.0,63724.0,2.1352123]
[1724446642119,0.21780751,63725.0,63724.0,2.4490653]
[1724446644260,0.21780751,63725.0,63724.0,2.4490653]
[1724446644507,0.21780751,63725.0,63724.0,2.7629183]
[1724446644721,0.21780751,63725.0,63724.0,2.7649183]
[1724446644722,5.1e-07,63725.0,63724.0,2.7649183]
[1724446645418,5.1e-07,63725.0,63724.0,2.7879183]
[1724446645628,0.00090861,63736.0,63735.0,1.205674]
[1724446645844,0.00090861,63736.0,63735.0,1.78347598]
[1724446646063,0.00090861,63736.0,63735.0,2.41107398]
[1724446646279,0.00090861,63736.0,63735.0,2.72487298]
[1724446647402,0.00090861,63736.0,63735.0,2.73887298]
[1724446647848,0.00090861,63736.0,63735.0,2.75287298]
[1724446649633,0.00090861,63736.0,63735.0,2.76124848]
[1724446651207,0.00090861,63736.0,63735.0,2.76324848]
[1724446652202,6.1e-07,63736.0,63735.0,2.82022877]
[1724446653111,6.1e-07,63736.0,63735.0,2.80622877]
[1724446653551,6.1e-07,63736.0,63735.0,2.82022877]
[1724446653967,6.1e-07,63736.0,63735.0,2.79222877]
[1724446654456,6.1e-07,63736.0,63735.0,2.78624848]
[1724446654677,6.1e-07,63736.0,63735.0,2.61826832]
[1724446654933,6.1e-07,63736.0,63735.0,2.82022825]
[1724446655179,6.1e-07,63736.0,63735.0,2.52823326]
[1724446655431,6.1e-07,63736.0,63735.0,2.48142925]
[1724446655648,6.1e-07,63736.0,63735.0,2.52823326]
[1724446656354,6.1e-07,63736.0,63735.0,2.48142925]
[1724446656576,6.1e-07,63736.0,63735.0,2.44744948]
[1724446656790,6.1e-07,63736.0,63735.0,2.48142372]
[1724446657003,6.1e-07,63736.0,63735.0,2.43907398]
[1724446657235,6.1e-07,63736.0,63735.0,2.48587799]
[1724446657664,6.1e-07,63736.0,63735.0,2.56661674]
[1724446658335,6.1e-07,63736.0,63735.0,2.56752424]
[1724446658564,6.1e-07,63736.0,63735.0,2.53355397]
[1724446658787,6.1e-07,63736.0,63735.0,2.43998148]
[1724446659212,6.1e-07,63736.0,63735.0,2.51034815]
[1724446659688,6.1e-07,63736.0,63735.0,2.43998148]
[1724446659909,6.1e-07,63736.0,63735.0,2.5338037]
[1724446660136,6.1e-07,63736.0,63735.0,2.47394329]
[1724446660362,6.1e-07,63736.0,63735.0,2.55729493]
[1724446660500,6.1e-07,63736.0,63735.0,2.43998148]
[1724446660955,6.1e-07,63736.0,63735.0,2.53386914]
[1724446661202,6.1e-07,63736.0,63735.0,2.43998148]
[1724446661408,6.1e-07,63736.0,63735.0,2.55733858]
[1724446661573,6.1e-07,63736.0,63735.0,2.43998148]
[1724446661748,6.1e-07,63736.0,63735.0,2.55734158]
[1724446662173,6.1e-07,63736.0,63735.0,2.53387402]
[1724446662865,6.1e-07,63736.0,63735.0,2.47395518]
[1724446663061,6.1e-07,63736.0,63735.0,2.40885518]
[1724446663267,6.1e-07,63736.0,63735.0,2.49224168]
[1724446663451,6.1e-07,63736.0,63735.0,2.40885468]
[1724446663700,6.1e-07,63736.0,63735.0,2.37488148]
[1724446663878,6.1e-07,63736.0,63735.0,2.40885208]
[1724446665968,6.1e-07,63736.0,63735.0,2.54958542]
[1724446666189,6.1e-07,63736.0,63735.0,2.40885208]
[1724446666405,6.1e-07,63736.0,63735.0,2.54958542]
[1724446667492,6.1e-07,63736.0,63735.0,2.40885208]
[1724446669014,6.1e-07,63736.0,63735.0,2.54958542]
[1724446669225,6.1e-07,63736.0,63735.0,2.40885208]
[1724446673358,6.1e-07,63736.0,63735.0,2.01485308]
[1724446673581,0.13880061,63736.0,63735.0,2.12916548]
[1724446674629,0.13880061,63736.0,63735.0,2.13016548]
[1724446674837,0.13880061,63736.0,63735.0,2.52406448]
[1724446674838,6.1e-07,63736.0,63735.0,2.52406448]
[1724446675067,6.1e-07,63736.0,63735.0,2.44115208]
[1724446675276,6.1e-07,63736.0,63735.0,2.45515208]
[1724446675484,6.1e-07,63736.0,63735.0,2.46915208]
[1724446675704,6.1e-07,63736.0,63735.0,2.45515208]
[1724446675914,6.1e-07,63736.0,63735.0,2.44115208]
[1724446676149,6.1e-07,63736.0,63735.0,2.45515208]
[1724446677265,6.1e-07,63736.0,63735.0,2.44115208]
[1724446677914,6.1e-07,63736.0,63735.0,2.45515208]
[1724446679073,0.0618,63746.0,63745.0,1.41558781]
[1724446679291,0.009086,63751.0,63750.0,0.15757481]
[1724446679526,0.009086,63751.0,63750.0,0.78502481]
[1724446679751,0.074086,63751.0,63750.0,0.78502481]
[1724446679970,0.074086,63751.0,63750.0,1.41247481]
[1724446681337,0.074086,63751.0,63750.0,1.42647481]
[1724446682419,0.074086,63751.0,63750.0,1.44047481]
[1724446686078,0.074086,63751.0,63750.0,1.48744965]
[1724446686301,0.074086,63751.0,63750.0,1.44347481]
[1724446686510,0.074086,63751.0,63750.0,1.44047481]
[1724446686926,0.074086,63751.0,63750.0,1.41247481]
[1724446687346,0.074086,63751.0,63750.0,1.49693707]
[1724446687964,0.009086,63751.0,63750.0,1.66094005]
[1724446688171,0.009086,63751.0,63750.0,1.97466505]
[1724446688369,0.009086,63751.0,63750.0,1.91920279]
[1724446688580,0.009086,63751.0,63750.0,1.91820279]
[1724446689217,0.009086,63751.0,63750.0,2.01215247]
[1724446690267,0.009086,63751.0,63750.0,1.91820279]
[1724446690471,0.009086,63751.0,63750.0,1.91920279]
[1724446691497,0.009086,63751.0,63750.0,1.92120279]
[1724446693213,0.009086,63751.0,63750.0,1.91820279]
[1724446693852,0.009086,63751.0,63750.0,1.91920279]
[1724446694068,0.009086,63751.0,63750.0,1.91820279]
[1724446694288,0.009086,63751.0,63750.0,1.92120279]
[1724446694509,0.009086,63751.0,63750.0,1.91820279]
[1724446696480,0.009086,63751.0,63750.0,1.60447779]
[1724446697617,0.009086,63751.0,63750.0,1.75900853]
[1724446697850,0.009086,63762.0,63750.0,1.75900853]
[1724446697851,0.072686,63762.0,63753.0,1.49180781]
[1724446698071,0.072686,63762.0,63753.0,2.06195715]
[1724446698072,0.009086,63762.0,63753.0,2.06195715]
[1724446698293,0.009086,63762.0,63753.0,2.43586715]
[1724446698973,0.009086,63762.0,63753.0,2.44986715]
[1724446699437,0.009086,63762.0,63753.0,2.43586715]
[1724446699683,0.009086,63762.0,63753.0,2.44986715]
[1724446700126,0.009086,63762.0,63753.0,2.45186715]
[1724446700559,0.009086,63762.0,63753.0,2.59271046]
[1724446700794,0.009086,63762.0,63761.0,1.55423181]
[1724446701018,0.009086,63762.0,63761.0,2.42143765]
[1724446701240,0.009086,63762.0,63761.0,2.24316998]
[1724446701466,0.009086,63762.0,63761.0,2.33706665]
[1724446702118,0.009086,63762.0,63761.0,2.24316998]
[1724446702333,0.009086,63762.0,63761.0,2.27116998]
[1724446702549,0.009086,63762.0,63761.0,2.33855559]
[1724446702819,0.009086,63762.0,63761.0,2.02012845]
[1724446703038,0.009086,63762.0,63761.0,2.03412845]
[1724446703252,0.009086,63762.0,63761.0,1.96374284]
[1724446703681,0.009086,63762.0,63761.0,1.96574284]
[1724446703898,0.009086,63762.0,63761.0,2.02664284]
[1724446704147,0.009086,63762.0,63761.0,2.09702845]
[1724446704592,0.009086,63762.0,63761.0,2.02664284]
[1724446705023,0.009086,63762.0,63761.0,2.09700117]
[1724446705238,0.009086,63762.0,63761.0,2.02664284]
[1724446705917,0.01,63765.0,63761.0,2.02664284]
[1724446705918,0.01,63765.0,63764.0,0.0811]
[1724446706168,0.02458431,63773.0,63764.0,0.0811]
[1724446706169,0.02458431,63773.0,63772.0,0.822402]
[1724446706360,0.0766,63783.0,63781.0,0.156786]
[1724446706818,0.03366594,63782.0,63781.0,1.097505]
[1724446707048,0.09906594,63782.0,63781.0,1.097505]
[1724446708584,0.03366594,63782.0,63781.0,2.00095798]
[1724446708807,0.009086,63782.0,63781.0,2.00095798]
[1724446709024,0.009086,63782.0,63781.0,1.95405798]
[1724446709244,0.151086,63782.0,63781.0,1.56238498]
[1724446709541,0.151086,63782.0,63781.0,1.54838498]
[1724446709755,0.151086,63782.0,63781.0,1.29022079]
[1724446710427,0.151086,63782.0,63781.0,0.02871281]
[1724446710651,0.17566476,63782.0,63781.0,0.02871281]
[1724446710883,0.17566476,63782.0,63781.0,0.01471281]
[1724446711083,0.17566476,63782.0,63781.0,0.02871281]
[1724446711299,0.17566476,63782.0,63781.0,0.01471281]
[1724446711737,0.17566476,63782.0,63781.0,0.02871281]
[1724446711956,0.17566476,63782.0,63781.0,0.01471281]
[1724446712178,0.17566476,63782.0,63781.0,0.028]
[1724446712393,0.64601676,63782.0,63781.0,0.028]
[1724446712642,0.64601676,63782.0,63781.0,0.014]
[1724446713104,0.64601676,63782.0,63781.0,0.028]
[1724446713577,0.95958476,63782.0,63781.0,0.028]
[1724446713813,0.64601676,63782.0,63781.0,0.028]
[1724446714537,0.95958476,63782.0,63781.0,0.028]
[1724446715480,0.95958476,63782.0,63781.0,0.014]
[1724446716220,0.95958476,63782.0,63781.0,0.011]
[1724446716459,0.95958476,63782.0,63781.0,0.021]
[1724446721423,0.64601676,63782.0,63781.0,0.021]
[1724446721658,0.95958476,63782.0,63781.0,0.021]
[1724446725328,0.64601676,63782.0,63781.0,0.021]
[1724446725829,0.95958476,63782.0,63781.0,0.021]
[1724446728006,1.12358774,63782.0,63781.0,0.021]
[1724446728220,1.22358774,63782.0,63781.0,0.021]
[1724446728441,1.58391579,63782.0,63781.0,0.021]
[1724446728696,1.54925875,63782.0,63781.0,0.021]
[1724446728938,1.59604316,63782.0,63781.0,0.01]
[1724446729168,0.1435,63769.0,63766.0,0.00162031]
[1724446729384,0.00100002,63768.0,63767.0,0.00071281]
[1724446729822,0.00100002,63768.0,63766.0,0.0009075]
[1724446729823,0.15781902,63768.0,63766.0,0.0009075]
[1724446730036,0.18140499,63768.0,63766.0,0.0009075]
[1724446730729,1.402046,63767.0,63766.0,0.0009075]
[1724446730947,1.40104598,63767.0,63766.0,0.0009075]
[1724446731180,1.50104598,63767.0,63766.0,0.0009075]
[1724446731396,1.50104598,63767.0,63766.0,0.0099075]
[1724446731620,1.50104598,63767.0,63766.0,0.0009075]
[1724446731891,1.67312355,63767.0,63766.0,0.0119075]
[1724446732083,1.67312355,63767.0,63766.0,0.0159075]
[1724446732312,1.67312355,63767.0,63766.0,0.0049075]
[1724446732528,1.67312355,63767.0,63766.0,0.0009075]
[1724446732529,1.50914477,63767.0,63766.0,0.0009075]
[1724446732738,1.50914477,63767.0,63766.0,0.0039075]
[1724446732976,2.16602165,63767.0,63766.0,0.0039075]
[1724446733210,2.16602165,63767.0,63750.0,1.2859075]
[1724446733211,0.61518,63751.0,63750.0,1.2859075]
[1724446733430,1.09290298,63751.0,63750.0,1.2859075]
[1724446733879,1.11749824,63751.0,63750.0,1.2859075]
[1724446734797,1.43121824,63751.0,63750.0,1.2859075]
[1724446735015,1.43221824,63751.0,63750.0,1.2999075]
[1724446735245,1.11849824,63751.0,63750.0,1.2999075]
[1724446735779,1.11749824,63751.0,63750.0,1.2859075]
[1724446736228,1.11749824,63751.0,63750.0,1.2869075]
[1724446737348,1.43121824,63751.0,63750.0,1.2869075]
[1724446739923,1.50091981,63751.0,63750.0,1.2869075]
[1724446740341,1.43121824,63751.0,63750.0,1.2869075]
[1724446741026,1.11749824,63751.0,63750.0,1.2869075]
[1724446748612,1.43121824,63751.0,63750.0,1.2869075]
[1724446748817,1.55450543,63751.0,63750.0,1.2869075]
[1724446750084,1.56250543,63751.0,63750.0,1.2879075]
[1724446750504,1.56250543,63751.0,63750.0,1.2869075]
[1724446750733,1.65213197,63751.0,63750.0,1.2869075]
[1724446752048,1.96785197,63751.0,63750.0,1.2869075]
[1724446752291,1.96985197,63751.0,63750.0,1.2869075]
[1724446752510,1.98194629,63751.0,63750.0,1.2869075]
[1724446753162,1.66422629,63751.0,63750.0,1.2869075]
[1724446753375,1.56750543,63751.0,63750.0,1.2869075]
[1724446754065,1.56950543,63751.0,63750.0,1.2869075]
[1724446754266,1.88322543,63751.0,63750.0,1.2869075]
[1724446754501,1.56950543,63751.0,63750.0,1.2869075]
[1724446754698,1.74758324,63751.0,63750.0,1.2869075]
[1724446755408,1.56750543,63751.0,63750.0,1.2869075]
[1724446756522,1.57960434,63751.0,63750.0,1.2869075]
[1724446756747,1.56750543,63751.0,63750.0,1.2869075]
[1724446757616,1.57960467,63751.0,63750.0,1.2869075]
[1724446757830,1.56750543,63751.0,63750.0,1.2869075]
[1724446758035,1.57960336,63751.0,63750.0,1.2869075]
[1724446758240,1.60088357,63751.0,63750.0,1.2869075]
[1724446759105,1.57960336,63751.0,63750.0,1.2869075]
[1724446760615,1.5796035,63751.0,63750.0,1.2869075]
[1724446763814,1.56750543,63751.0,63750.0,1.2869075]
[1724446764025,1.57960431,63751.0,63750.0,1.2869075]
[1724446767132,1.5796044,63751.0,63750.0,1.2869075]
[1724446767338,1.74358318,63751.0,63750.0,1.2869075]
[1724446767552,1.5796044,63751.0,63750.0,1.2869075]
[1724446770520,1.57960182,63751.0,63750.0,1.2869075]
[1724446772459,1.62624417,63751.0,63750.0,1.2869075]
[1724446773552,1.64956534,63751.0,63750.0,1.2869075]
[1724446774264,1.80144773,63751.0,63750.0,1.2869075]
[1724446774448,1.82476891,63751.0,63750.0,1.2869075]
[1724446774725,1.67288449,63751.0,63750.0,1.2869075]
[1724446774946,2.02071702,63751.0,63750.0,1.2869075]
[1724446775371,2.02097883,63751.0,63750.0,1.2869075]
[1724446775582,1.92743231,63751.0,63750.0,1.2869075]
[1724446778546,2.49960073,63751.0,63750.0,1.2869075]
[1724446778981,2.55382311,63751.0,63750.0,1.2869075]
[1724446779427,2.41350736,63751.0,63750.0,1.2869075]
[1724446780303,2.21468543,63751.0,63750.0,1.2869075]
[1724446780935,2.27867285,63751.0,63750.0,1.2869075]
[1724446781603,2.21468543,63751.0,63750.0,1.2869075]
[1724446782067,0.82524914,63751.0,63750.0,1.2869075]
[1724446782295,0.10796677,63751.0,63750.0,1.9038945]
[1724446782519,0.10796677,63751.0,63750.0,2.5313445]
[1724446782520,0.03759526,63751.0,63750.0,2.5313445]
[1724446783179,0.03259526,63751.0,63750.0,2.5313445]
[1724446783408,0.02459526,63751.0,63750.0,2.5303445]
[1724446783623,0.02459526,63751.0,63750.0,2.5313445]
[1724446783840,0.02559526,63751.0,63750.0,2.5313445]
[1724446784908,0.02559526,63751.0,63750.0,2.5303445]
[1724446785119,0.02459526,63751.0,63750.0,2.5303445]
[1724446785347,0.02459526,63751.0,63750.0,2.5433445]
[1724446785548,0.02459526,63751.0,63750.0,2.8162215]
[1724446785766,0.02459526,63751.0,63750.0,3.1299465]
[1724446786652,0.02459526,63751.0,63750.0,3.1169465]
[1724446787073,0.02559526,63751.0,63750.0,3.1309465]
[1724446787915,0.000825,63766.0,63765.0,0.784127]
[1724446788132,0.000825,63766.0,63765.0,1.517055]
[1724446788354,0.000825,63766.0,63765.0,1.830706]
[1724446790172,0.000825,63766.0,63765.0,1.835706]
[1724446791044,0.000825,63766.0,63765.0,1.842706]
[1724446791266,0.000825,63766.0,63765.0,1.837706]
[1724446791519,0.000825,63766.0,63765.0,1.844706]
[1724446791799,0.000825,63766.0,63765.0,0.014]
[1724446792209,0.000825,63766.0,63765.0,0.028]
[1724446792423,0.000825,63766.0,63765.0,0.014]
[1724446792634,0.000825,63766.0,63765.0,0.184825]
[1724446792850,0.000825,63766.0,63765.0,0.170825]
[1724446793106,0.16482798,63766.0,63765.0,0.014]
[1724446793329,0.34623627,63766.0,63765.0,0.022]
[1724446793564,1.12922676,63766.0,63765.0,0.022]
[1724446793781,1.62697276,63766.0,63765.0,0.022]
[1724446793993,1.95272331,63766.0,63765.0,1e-08]
[1724446794208,2.02309482,63766.0,63765.0,1e-08]
[1724446794434,2.02309482,63766.0,63765.0,0.01000001]
[1724446794644,1.63907731,63766.0,63765.0,0.01000001]
[1724446794880,1.63907731,63766.0,63765.0,1e-08]
[1724446794881,2.02274401,63766.0,63765.0,1e-08]
[1724446795096,2.02274401,63766.0,63750.0,1.2859075]
[1724446795097,0.9235,63751.0,63750.0,1.2859075]
[1724446795345,1.18750298,63751.0,63750.0,1.2859075]
[1724446795785,1.21209945,63751.0,63750.0,1.2859075]
[1724446796880,1.21209945,63751.0,63750.0,1.2869075]
[1724446797499,1.22109945,63751.0,63750.0,1.2869075]
[1724446800186,1.14299945,63751.0,63750.0,1.2869075]
[1724446800845,0.45445945,63751.0,63750.0,1.2869075]
[1724446801072,0.76817945,63751.0,63750.0,1.2869075]
[1724446801339,1.08189945,63751.0,63750.0,1.2869075]
[1724446801796,0.76817945,63751.0,63750.0,1.2869075]
[1724446802058,0.74358298,63751.0,63750.0,1.2869075]
[1724446802279,0.74440798,63751.0,63750.0,1.2869075]
[1724446803241,0.74440798,63751.0,63750.0,2.1533195]
[1724446803242,0.009825,63751.0,63750.0,2.1533195]
[1724446803490,0.009825,63751.0,63750.0,2.15403231]
[1724446803947,0.000825,63751.0,63750.0,1.84030731]
[1724446804411,0.000825,63751.0,63750.0,2.15603231]
[1724446805589,0.000825,63751.0,63750.0,2.15503231]
[1724446806534,0.000825,63751.0,63750.0,1.84130731]
[1724446807499,0.000825,63751.0,63750.0,1.83930731]
[1724446807975,0.006825,63751.0,63750.0,1.84030731]
[1724446808220,0.163685,63751.0,63750.0,1.3690075]
[1724446808438,0.163685,63751.0,63750.0,1.2869075]
[1724446808439,1.00296668,63751.0,63750.0,1.2869075]
[1724446808656,0.95512798,63751.0,63750.0,1.2869075]
[1724446808925,0.95512798,63751.0,63750.0,1.2879075]
[1724446808926,1.02472798,63751.0,63750.0,1.2879075]
[1724446809648,1.02172798,63751.0,63750.0,1.2869075]
[1724446809866,1.02172798,63751.0,63750.0,1.2879075]
[1724446810084,1.02472798,63751.0,63750.0,1.2879075]
[1724446810316,1.01872798,63751.0,63750.0,1.2869075]
[1724446810752,1.02072798,63751.0,63750.0,1.2869075]
[1724446811181,1.01872798,63751.0,63750.0,1.2869075]
[1724446811406,1.03312161,63751.0,63750.0,1.2879075]
[1724446811627,1.17501433,63751.0,63750.0,1.2879075]
[1724446812393,1.17601433,63751.0,63750.0,1.2879075]
[1724446812485,1.51602152,63751.0,63750.0,1.2879075]
[1724446813167,1.61602152,63751.0,63750.0,1.2879075]
[1724446813612,2.00494152,63751.0,63750.0,1.2879075]
[1724446814510,1.99894152,63751.0,63750.0,1.2869075]
[1724446814731,2.00894152,63751.0,63750.0,1.2879075]
[1724446815179,2.03053982,63751.0,63750.0,1.2869075]
[1724446815626,2.04153982,63751.0,63750.0,1.2879075]
[1724446815846,2.04153982,63751.0,63750.0,1.2869075]
[1724446816087,1.5929271,63751.0,63750.0,1.2879075]
[1724446816536,1.5829271,63751.0,63750.0,1.2869075]
[1724446816755,1.5989271,63751.0,63750.0,1.2869075]
[1724446817424,1.5969271,63751.0,63750.0,1.2869075]
[1724446817663,1.5217271,63751.0,63750.0,1.2869075]
[1724446817887,1.68181981,63751.0,63750.0,1.2869075]
[1724446818107,0.8276871,63751.0,63750.0,1.2869075]
[1724446819064,1.1414071,63751.0,63750.0,1.2869075]
[1724446819765,1.1434071,63751.0,63750.0,1.2869075]
[1724446819999,1.2211071,63751.0,63750.0,1.2869075]
[1724446820272,1.24228516,63751.0,63750.0,1.2869075]
[1724446820509,1.55600516,63751.0,63750.0,1.2869075]
[1724446820725,1.24228516,63751.0,63750.0,1.2869075]
[1724446820984,1.55600516,63751.0,63750.0,1.2869075]
[1724446821220,1.24028516,63751.0,63750.0,1.2869075]
[1724446821431,1.61970516,63751.0,63750.0,1.2869075]
[1724446821666,1.63178876,63751.0,63750.0,1.2869075]
[1724446822139,1.63178932,63751.0,63750.0,1.2869075]
[1724446822356,1.62778932,63751.0,63750.0,1.2869075]
[1724446822579,1.53091126,63751.0,63750.0,1.2869075]
[1724446822823,1.21719126,63751.0,63750.0,1.2869075]
[1724446823275,1.53091126,63751.0,63750.0,1.2869075]
[1724446823709,1.53491126,63751.0,63750.0,1.2869075]
[1724446823921,1.69612239,63751.0,63750.0,1.2869075]
[1724446825294,1.38240239,63751.0,63750.0,1.2869075]
[1724446825955,1.69612239,63751.0,63750.0,1.2869075]
[1724446826181,1.37840239,63751.0,63750.0,1.2869075]
[1724446826401,1.38240239,63751.0,63750.0,1.2869075]
[1724446826612,1.69612239,63751.0,63750.0,1.2869075]
[1724446827990,1.69612237,63751.0,63750.0,1.2869075]
[1724446831405,1.68003823,63751.0,63750.0,1.2869075]
[1724446831650,1.1414071,63751.0,63750.0,1.2869075]
[1724446831915,1.15347904,63751.0,63750.0,1.2869075]
[1724446834624,1.1414071,63751.0,63750.0,1.2869075]
[1724446834849,1.12848557,63751.0,63750.0,1.2869075]
[1724446836637,1.12819838,63751.0,63750.0,1.2869075]
[1724446836879,0.07267677,63751.0,63750.0,2.1534195]